[Event "*** Qualifier 1: Titled Tuesday 3|2 Blitz"]
[Site "Chess.com"]
[Date "2017.04.04"]
[Round "1"]
[White "Sanan_Sjugirov"]
[Black "MyleneFarmer"]
[Result "1-0"]
[WhiteElo "2699"]
[BlackElo "2345"]
[TimeControl "180+2"]
[EndTime "13:09:20 PDT"]
[Termination "Sanan_Sjugirov won on time"]

1. d4 {[%clk 0:03:02]} 1... d5 {[%clk 0:03:00.3]} 2. Nf3 {[%clk 0:03:02.8]} 2...
Nf6 {[%clk 0:03:00.5]} 3. Bg5 {[%clk 0:03:03.1]} 3... Ne4 {[%clk 0:02:58.3]} 4.
Bh4 {[%clk 0:03:03.6]} 4... Bf5 {[%clk 0:02:52.3]} 5. e3 {[%clk 0:02:57.6]} 5...
Nd7 {[%clk 0:02:47.5]} 6. Nbd2 {[%clk 0:02:57.2]} 6... c6 {[%clk 0:02:44]} 7.
Be2 {[%clk 0:02:53.3]} 7... Qb6 {[%clk 0:02:44.3]} 8. O-O {[%clk 0:02:26.1]}
8... e6 {[%clk 0:02:22.9]} 9. Nxe4 {[%clk 0:02:20.5]} 9... Bxe4 {[%clk
0:02:23.6]} 10. Nd2 {[%clk 0:02:19]} 10... Bg6 {[%clk 0:02:23.7]} 11. Qc1 {[%clk
0:02:04.8]} 11... Bd6 {[%clk 0:02:23.3]} 12. c4 {[%clk 0:02:04.7]} 12... Qc7
{[%clk 0:01:54.2]} 13. f4 {[%clk 0:01:43.3]} 13... Nf6 {[%clk 0:01:45.4]} 14.
Bxf6 {[%clk 0:01:32.2]} 14... gxf6 {[%clk 0:01:47.3]} 15. Qc3 {[%clk 0:01:19.7]}
15... h5 {[%clk 0:01:27.3]} 16. Rac1 {[%clk 0:01:16.9]} 16... h4 {[%clk
0:01:23]} 17. Bd3 {[%clk 0:01:02.9]} 17... Bxd3 {[%clk 0:00:38.3]} 18. Qxd3
{[%clk 0:01:04.8]} 18... Qd7 {[%clk 0:00:29.9]} 19. a3 {[%clk 0:00:58.1]} 19...
O-O-O {[%clk 0:00:26.8]} 20. b4 {[%clk 0:00:56.3]} 20... Kb8 {[%clk 0:00:28]}
21. c5 {[%clk 0:00:44.6]} 21... Bc7 {[%clk 0:00:29.1]} 22. Rb1 {[%clk
0:00:43.1]} 22... e5 {[%clk 0:00:25.3]} 23. b5 {[%clk 0:00:37.4]} 23... Ba5
{[%clk 0:00:26.2]} 24. fxe5 {[%clk 0:00:35.3]} 24... fxe5 {[%clk 0:00:28.1]} 25.
bxc6 {[%clk 0:00:35.5]} 25... Qxc6 {[%clk 0:00:28.2]} 26. Rxf7 {[%clk 0:00:36]}
26... Bc7 {[%clk 0:00:18.1]} 27. dxe5 {[%clk 0:00:29.9]} 27... d4 {[%clk
0:00:19]} 28. exd4 {[%clk 0:00:27.8]} 28... Rhg8 {[%clk 0:00:12.4]} 29. Qf3
{[%clk 0:00:27.2]} 29... Qxf3 {[%clk 0:00:11]} 30. Nxf3 {[%clk 0:00:29.1]} 30...
h3 {[%clk 0:00:12.5]} 31. g3 {[%clk 0:00:29.5]} 31... Rdf8 {[%clk 0:00:13.9]}
32. Rxf8+ {[%clk 0:00:29.7]} 32... Rxf8 {[%clk 0:00:15.8]} 33. Kf2 {[%clk
0:00:30.7]} 33... b6 {[%clk 0:00:16.3]} 34. Ke3 {[%clk 0:00:31.2]} 34... Kc8
{[%clk 0:00:16.9]} 35. cxb6 {[%clk 0:00:31]} 35... Bxb6 {[%clk 0:00:18.8]} 36.
Ke4 {[%clk 0:00:32.3]} 36... Kd7 {[%clk 0:00:19.6]} 37. d5 {[%clk 0:00:33]}
37... Rc8 {[%clk 0:00:19.8]} 38. Rd1 {[%clk 0:00:25.9]} 38... Rc4+ {[%clk
0:00:20.3]} 39. Kf5 {[%clk 0:00:26.8]} 39... Rc3 {[%clk 0:00:21]} 40. Ng5 {[%clk
0:00:25.9]} 40... Rxa3 {[%clk 0:00:19.7]} 41. e6+ {[%clk 0:00:27.1]} 41... Ke7
{[%clk 0:00:21.1]} 42. d6+ {[%clk 0:00:28.2]} 42... Ke8 {[%clk 0:00:18.6]} 43.
Ne4 {[%clk 0:00:24.5]} 43... Ra5+ {[%clk 0:00:18.8]} 44. Kg6 {[%clk 0:00:24.9]}
44... Re5 {[%clk 0:00:19.1]} 45. Nf6+ {[%clk 0:00:25.6]} 1-0

[Event "*** Qualifier 1: Titled Tuesday 3|2 Blitz"]
[Site "Chess.com"]
[Date "2017.04.04"]
[Round "1"]
[White "gmcorrales"]
[Black "jcgs1030"]
[Result "0-1"]
[WhiteElo "2569"]
[BlackElo "2281"]
[TimeControl "180+2"]
[EndTime "13:09:28 PDT"]
[Termination "jcgs1030 won by resignation"]

1. e4 {[%clk 0:01:44.7]} 1... c5 {[%clk 0:02:59.2]} 2. Nf3 {[%clk 0:01:45.7]}
2... d6 {[%clk 0:03:00.8]} 3. c3 {[%clk 0:01:46]} 3... Nf6 {[%clk 0:03:01.2]} 4.
Be2 {[%clk 0:01:45.3]} 4... Nbd7 {[%clk 0:03:02.6]} 5. d3 {[%clk 0:01:45.1]}
5... b6 {[%clk 0:03:02.8]} 6. O-O {[%clk 0:01:46.1]} 6... Bb7 {[%clk 0:03:04.1]}
7. b3 {[%clk 0:01:45.5]} 7... g6 {[%clk 0:03:04.9]} 8. h3 {[%clk 0:01:46.7]}
8... Bg7 {[%clk 0:03:06.6]} 9. Re1 {[%clk 0:01:47.7]} 9... O-O {[%clk
0:03:08.3]} 10. Bf1 {[%clk 0:01:48.6]} 10... Qc7 {[%clk 0:03:09.4]} 11. Bb2
{[%clk 0:01:49.5]} 11... Rfe8 {[%clk 0:03:10]} 12. Nbd2 {[%clk 0:01:50.7]} 12...
e6 {[%clk 0:03:10.5]} 13. Rc1 {[%clk 0:01:51.8]} 13... Rac8 {[%clk 0:03:11.1]}
14. d4 {[%clk 0:01:52]} 14... Qb8 {[%clk 0:03:09.3]} 15. a4 {[%clk 0:01:51.7]}
15... Qa8 {[%clk 0:03:09.4]} 16. Qe2 {[%clk 0:01:50.4]} 16... a6 {[%clk
0:03:00.8]} 17. g4 {[%clk 0:01:46.3]} 17... e5 {[%clk 0:02:58.2]} 18. d5 {[%clk
0:01:46.7]} 18... h5 {[%clk 0:02:50.7]} 19. Nh2 {[%clk 0:01:41.6]} 19... hxg4
{[%clk 0:02:51]} 20. hxg4 {[%clk 0:01:42.4]} 20... Nh7 {[%clk 0:02:51.4]} 21. c4
{[%clk 0:01:41.3]} 21... b5 {[%clk 0:02:49.9]} 22. axb5 {[%clk 0:01:40]} 22...
axb5 {[%clk 0:02:50.9]} 23. cxb5 {[%clk 0:01:41.9]} 23... Qa2 {[%clk 0:02:46.5]}
24. Bc3 {[%clk 0:01:38]} 24... Qa8 {[%clk 0:02:13.3]} 25. Nc4 {[%clk 0:01:32.8]}
25... Qb8 {[%clk 0:02:13]} 26. Ra1 {[%clk 0:01:31.4]} 26... Ng5 {[%clk
0:02:03.8]} 27. Bg2 {[%clk 0:01:28.4]} 27... Nf6 {[%clk 0:02:02.7]} 28. b6
{[%clk 0:01:25.3]} 28... Rcd8 {[%clk 0:01:56.4]} 29. Ra7 {[%clk 0:01:25.2]}
29... Nd7 {[%clk 0:01:56.4]} 30. Rea1 {[%clk 0:01:24.3]} 30... Bf8 {[%clk
0:01:51.7]} 31. Bd2 {[%clk 0:01:23.3]} 31... Nh7 {[%clk 0:01:50.9]} 32. g5
{[%clk 0:01:20.4]} 32... Be7 {[%clk 0:01:49.3]} 33. Qg4 {[%clk 0:01:17.5]} 33...
Ndf8 {[%clk 0:01:46.9]} 34. Nf3 {[%clk 0:01:03.6]} 34... Bc8 {[%clk 0:01:42.6]}
35. Qh4 {[%clk 0:01:04]} 35... Bb7 {[%clk 0:01:38.4]} 36. Na5 {[%clk 0:00:58.6]}
36... Rd7 {[%clk 0:01:32.4]} 37. Nc6 {[%clk 0:00:49.9]} 37... Bxc6 {[%clk
0:01:32.5]} 38. dxc6 {[%clk 0:00:51.8]} 38... Rxa7 {[%clk 0:01:33.7]} 39. bxa7
{[%clk 0:00:51.5]} 39... Qa8 {[%clk 0:01:34.2]} 40. Bh3 {[%clk 0:00:50]} 40...
Qxc6 {[%clk 0:01:34.1]} 41. Bf1 {[%clk 0:00:45.1]} 41... Ra8 {[%clk 0:01:32.1]}
42. Bc4 {[%clk 0:00:45.3]} 42... Qb6 {[%clk 0:01:33]} 43. Qg4 {[%clk 0:00:20.5]}
43... Rxa7 {[%clk 0:01:31.8]} 44. Rxa7 {[%clk 0:00:19.3]} 44... Qxa7 {[%clk
0:01:33.7]} 45. Nh4 {[%clk 0:00:20.3]} 45... Qa8 {[%clk 0:01:22]} 46. Kg2 {[%clk
0:00:18.9]} 46... Kg7 {[%clk 0:01:20.8]} 47. Qf3 {[%clk 0:00:18.5]} 47... Ne6
{[%clk 0:01:18.7]} 48. Nxg6 {[%clk 0:00:16.9]} 48... Nhxg5 {[%clk 0:01:15.2]}
49. Qg4 {[%clk 0:00:16.6]} 49... Kxg6 {[%clk 0:00:50.6]} 50. f3 {[%clk
0:00:16.4]} 50... Qa2 {[%clk 0:00:47.9]} 51. Qf5+ {[%clk 0:00:12.4]} 51... Kg7
{[%clk 0:00:48.1]} 52. Kg3 {[%clk 0:00:06.5]} 52... Qxd2 {[%clk 0:00:48.5]} 53.
Kg4 {[%clk 0:00:04.7]} 53... Qg2+ {[%clk 0:00:48.3]} 54. Kh4 {[%clk 0:00:06.1]}
54... Nxf3+ {[%clk 0:00:45.5]} 55. Kh5 {[%clk 0:00:02.9]} 55... Qg6+ {[%clk
0:00:47.4]} 56. Qxg6+ {[%clk 0:00:03.3]} 56... fxg6+ {[%clk 0:00:49.3]} 57. Kg4
{[%clk 0:00:05]} 57... Nfd4 {[%clk 0:00:50.7]} 58. Bd5 {[%clk 0:00:05.9]} 58...
Nf4 {[%clk 0:00:51.4]} 0-1

[Event "*** Qualifier 1: Titled Tuesday 3|2 Blitz"]
[Site "Chess.com"]
[Date "2017.04.04"]
[Round "1"]
[White "superjem123"]
[Black "Titus369"]
[Result "1-0"]
[WhiteElo "2505"]
[BlackElo "2195"]
[TimeControl "180+2"]
[EndTime "13:09:37 PDT"]
[Termination "superjem123 won by resignation"]

1. c4 {[%clk 0:03:02]} 1... e6 {[%clk 0:03:00.2]} 2. Nc3 {[%clk 0:03:02]} 2...
d5 {[%clk 0:03:00.6]} 3. d4 {[%clk 0:03:02.6]} 3... Nf6 {[%clk 0:03:01.1]} 4.
cxd5 {[%clk 0:03:02.7]} 4... exd5 {[%clk 0:03:03]} 5. Bg5 {[%clk 0:03:03.9]}
5... Be7 {[%clk 0:03:03.9]} 6. Qc2 {[%clk 0:03:01.9]} 6... Nbd7 {[%clk
0:03:04.6]} 7. e3 {[%clk 0:03:02.3]} 7... c6 {[%clk 0:03:05.8]} 8. Bd3 {[%clk
0:03:03]} 8... Nh5 {[%clk 0:03:06.8]} 9. Bxe7 {[%clk 0:03:02]} 9... Qxe7 {[%clk
0:03:08.7]} 10. Nf3 {[%clk 0:03:00.8]} 10... Nf4 {[%clk 0:03:09.1]} 11. Bf1
{[%clk 0:03:01]} 11... Nf6 {[%clk 0:02:54.6]} 12. Ne5 {[%clk 0:02:54.9]} 12...
Ng6 {[%clk 0:02:54.6]} 13. Nxg6 {[%clk 0:02:45.6]} 13... hxg6 {[%clk 0:02:56.5]}
14. Bd3 {[%clk 0:02:44.4]} 14... Bd7 {[%clk 0:02:48.2]} 15. O-O-O {[%clk
0:02:42.8]} 15... O-O-O {[%clk 0:02:47.1]} 16. h3 {[%clk 0:02:43.1]} 16... Kb8
{[%clk 0:02:47.7]} 17. Rhe1 {[%clk 0:02:43.5]} 17... Bc8 {[%clk 0:02:46.3]} 18.
f3 {[%clk 0:02:42]} 18... Qd6 {[%clk 0:02:44.7]} 19. Na4 {[%clk 0:02:40.6]}
19... Rhe8 {[%clk 0:02:41.2]} 20. Nc5 {[%clk 0:02:40.9]} 20... Nd7 {[%clk
0:02:41.1]} 21. Nb3 {[%clk 0:02:33.5]} 21... b6 {[%clk 0:02:34.1]} 22. Kb1
{[%clk 0:02:28.9]} 22... Bb7 {[%clk 0:02:34.8]} 23. e4 {[%clk 0:02:28.7]} 23...
dxe4 {[%clk 0:02:34.4]} 24. fxe4 {[%clk 0:02:30.6]} 24... c5 {[%clk 0:02:23.9]}
25. e5 {[%clk 0:02:27.3]} 25... Qe7 {[%clk 0:02:22.5]} 26. Bb5 {[%clk
0:02:17.1]} 26... cxd4 {[%clk 0:02:09.4]} 27. Rxd4 {[%clk 0:02:05.7]} 27... Nc5
{[%clk 0:01:24.6]} 28. Bxe8 {[%clk 0:02:02.7]} 28... Rxd4 {[%clk 0:01:22.7]} 29.
Nxd4 {[%clk 0:01:52.8]} 29... Qxe8 {[%clk 0:01:23.2]} 30. Nb3 {[%clk 0:01:48.4]}
30... Ne6 {[%clk 0:00:50]} 31. Rd1 {[%clk 0:01:48.9]} 31... Qa4 {[%clk
0:00:39.4]} 32. Ka1 {[%clk 0:01:28.2]} 32... Nc5 {[%clk 0:00:22.2]} 33. Qc3
{[%clk 0:01:10.7]} 33... Bxg2 {[%clk 0:00:11.6]} 34. Rd8+ {[%clk 0:00:58.9]}
34... Kc7 {[%clk 0:00:12.3]} 35. Nxc5 {[%clk 0:00:35.1]} 35... bxc5 {[%clk
0:00:12.4]} 36. Rd2 {[%clk 0:00:26.6]} 36... Bc6 {[%clk 0:00:09.4]} 37. Qxc5
{[%clk 0:00:26.2]} 37... Qe4 {[%clk 0:00:09.7]} 38. Qd6+ {[%clk 0:00:25.6]}
38... Kb7 {[%clk 0:00:10.2]} 39. Qe7+ {[%clk 0:00:26.1]} 39... Kb6 {[%clk
0:00:11.1]} 40. Rd1 {[%clk 0:00:20.2]} 40... Qc2 {[%clk 0:00:10]} 41. Qd8+
{[%clk 0:00:21.3]} 41... Kb7 {[%clk 0:00:11]} 42. Qd3 {[%clk 0:00:22.1]} 42...
Qxd3 {[%clk 0:00:07.8]} 43. Rxd3 {[%clk 0:00:24]} 43... Be4 {[%clk 0:00:08.7]}
44. Rd7+ {[%clk 0:00:24]} 44... Kb6 {[%clk 0:00:09.9]} 45. Rxf7 {[%clk
0:00:25.2]} 45... Bf5 {[%clk 0:00:11.8]} 46. Rxg7 {[%clk 0:00:24.4]} 46... a5
{[%clk 0:00:11.9]} 47. h4 {[%clk 0:00:25.1]} 47... Kc6 {[%clk 0:00:12.8]} 48. b3
{[%clk 0:00:22.6]} 48... Kd5 {[%clk 0:00:13.3]} 49. Ra7 {[%clk 0:00:23.4]} 49...
Kxe5 {[%clk 0:00:14.5]} 50. Rxa5+ {[%clk 0:00:24.5]} 50... Kf4 {[%clk
0:00:16.4]} 51. Ra4+ {[%clk 0:00:26]} 51... Kg3 {[%clk 0:00:17.4]} 52. Rd4
{[%clk 0:00:25.9]} 1-0

[Event "*** Qualifier 1: Titled Tuesday 3|2 Blitz"]
[Site "Chess.com"]
[Date "2017.04.04"]
[Round "1"]
[White "IMRosen"]
[Black "Storne89"]
[Result "0-1"]
[WhiteElo "2233"]
[BlackElo "2564"]
[TimeControl "180+2"]
[EndTime "13:09:45 PDT"]
[Termination "Storne89 won by checkmate"]

1. d4 {[%clk 0:03:02]} 1... Nf6 {[%clk 0:03:00.4]} 2. Bf4 {[%clk 0:03:01.2]}
2... e6 {[%clk 0:02:59.1]} 3. e3 {[%clk 0:03:02]} 3... c5 {[%clk 0:02:57.8]} 4.
Nf3 {[%clk 0:03:02.2]} 4... Nc6 {[%clk 0:02:57.5]} 5. Nc3 {[%clk 0:03:02.4]}
5... a6 {[%clk 0:02:48.9]} 6. d5 {[%clk 0:03:02.8]} 6... Ne7 {[%clk 0:02:43.7]}
7. e4 {[%clk 0:02:56.7]} 7... Ng6 {[%clk 0:02:40.9]} 8. Bg3 {[%clk 0:02:57.3]}
8... exd5 {[%clk 0:02:39.6]} 9. exd5 {[%clk 0:02:57.6]} 9... d6 {[%clk
0:02:40.2]} 10. a4 {[%clk 0:02:53.5]} 10... Be7 {[%clk 0:02:40.8]} 11. Be2
{[%clk 0:02:53.6]} 11... O-O {[%clk 0:02:39.9]} 12. Nd2 {[%clk 0:02:52]} 12...
Bf5 {[%clk 0:02:15.3]} 13. O-O {[%clk 0:02:50.3]} 13... Nd7 {[%clk 0:02:08.2]}
14. Nc4 {[%clk 0:02:49]} 14... Nde5 {[%clk 0:02:03.7]} 15. Ne3 {[%clk
0:02:43.9]} 15... Bc8 {[%clk 0:01:51.9]} 16. f4 {[%clk 0:02:41.2]} 16... Nd7
{[%clk 0:01:53.3]} 17. a5 {[%clk 0:02:41.6]} 17... f5 {[%clk 0:01:52.5]} 18. Nc4
{[%clk 0:02:35]} 18... Nf6 {[%clk 0:01:53.1]} 19. Nb6 {[%clk 0:02:36]} 19... Rb8
{[%clk 0:01:53.1]} 20. Bf3 {[%clk 0:02:37.3]} 20... Nd7 {[%clk 0:01:50.3]} 21.
Nc4 {[%clk 0:02:30.6]} 21... Nf6 {[%clk 0:01:48.6]} 22. Qd3 {[%clk 0:02:28.3]}
22... Rf7 {[%clk 0:01:45.2]} 23. Rfe1 {[%clk 0:02:24.8]} 23... Bf8 {[%clk
0:01:43.1]} 24. Re2 {[%clk 0:01:53]} 24... h5 {[%clk 0:01:44.2]} 25. Qd2 {[%clk
0:01:51.8]} 25... h4 {[%clk 0:01:44]} 26. Bf2 {[%clk 0:01:48.1]} 26... Ng4
{[%clk 0:01:38.1]} 27. Be1 {[%clk 0:01:48.7]} 27... Bd7 {[%clk 0:01:27.4]} 28.
h3 {[%clk 0:01:49.1]} 28... Nf6 {[%clk 0:01:28.5]} 29. Bf2 {[%clk 0:01:50.2]}
29... Bb5 {[%clk 0:01:09.9]} 30. b3 {[%clk 0:01:47.3]} 30... Bxc4 {[%clk
0:01:09.4]} 31. bxc4 {[%clk 0:01:49.2]} 31... b6 {[%clk 0:01:10.4]} 32. axb6
{[%clk 0:01:44.2]} 32... Qxb6 {[%clk 0:01:11.6]} 33. Re6 {[%clk 0:01:45.7]}
33... Qb4 {[%clk 0:01:10.9]} 34. Rxa6 {[%clk 0:01:43.6]} 34... Qxc4 {[%clk
0:01:10]} 35. Ra4 {[%clk 0:01:33.4]} 35... Rb4 {[%clk 0:01:11.1]} 36. Be2 {[%clk
0:01:20.9]} 36... Qxf4 {[%clk 0:01:05.9]} 37. Be3 {[%clk 0:01:22.2]} 37... Qg3
{[%clk 0:01:03.6]} 38. Bf2 {[%clk 0:01:18.4]} 38... Qf4 {[%clk 0:01:02.1]} 39.
Be3 {[%clk 0:01:19.1]} 39... Qg3 {[%clk 0:00:56.5]} 40. Bf2 {[%clk 0:01:12.1]}
40... Qf4 {[%clk 0:00:57.3]} 41. Be3 {[%clk 0:01:13.8]} 41... Qg3 {[%clk
0:00:53.7]} 42. Rxb4 {[%clk 0:01:15.3]} 42... cxb4 {[%clk 0:00:54.1]} 43. Nb5
{[%clk 0:01:13.4]} 43... Ne4 {[%clk 0:00:49.6]} 44. Qc1 {[%clk 0:01:09.4]} 44...
Ne5 {[%clk 0:00:45.7]} 45. Bh5 {[%clk 0:00:44.4]} 45... g6 {[%clk 0:00:35.5]}
46. Rxe5 {[%clk 0:00:14.8]} 46... dxe5 {[%clk 0:00:30.5]} 47. Bf3 {[%clk
0:00:16.4]} 47... Ng5 {[%clk 0:00:29.1]} 48. Bxg5 {[%clk 0:00:12.4]} 48... Bc5+
{[%clk 0:00:19.8]} 49. Kh1 {[%clk 0:00:13.8]} 49... f4 {[%clk 0:00:13.4]} 50. d6
{[%clk 0:00:11.6]} 50... Qxg5 {[%clk 0:00:12.9]} 51. Bd5 {[%clk 0:00:10.1]}
51... f3 {[%clk 0:00:14.2]} 52. Bxf7+ {[%clk 0:00:10.8]} 52... Kxf7 {[%clk
0:00:14.6]} 53. gxf3 {[%clk 0:00:12.4]} 53... Qxc1+ {[%clk 0:00:14.9]} 54. Kg2
{[%clk 0:00:12.7]} 54... Qg1# {[%clk 0:00:15.8]} 0-1

[Event "*** Qualifier 1: Titled Tuesday 3|2 Blitz"]
[Site "Chess.com"]
[Date "2017.04.04"]
[Round "1"]
[White "PowerThinking2650"]
[Black "Iball95"]
[Result "0-1"]
[WhiteElo "2161"]
[BlackElo "2480"]
[TimeControl "180+2"]
[EndTime "13:09:47 PDT"]
[Termination "Iball95 won by resignation"]

1. e4 {[%clk 0:03:02]} 1... c6 {[%clk 0:02:57.7]} 2. d4 {[%clk 0:03:02.1]} 2...
d5 {[%clk 0:02:59.2]} 3. Nc3 {[%clk 0:03:02.5]} 3... dxe4 {[%clk 0:03:00.1]} 4.
Nxe4 {[%clk 0:03:04.4]} 4... Bf5 {[%clk 0:03:01.4]} 5. Ng3 {[%clk 0:03:04.9]}
5... Bg6 {[%clk 0:03:03]} 6. Nf3 {[%clk 0:03:06.2]} 6... Nd7 {[%clk 0:03:02.3]}
7. h4 {[%clk 0:03:07.6]} 7... h6 {[%clk 0:03:03.1]} 8. h5 {[%clk 0:03:09.5]}
8... Bh7 {[%clk 0:03:04.6]} 9. Bd3 {[%clk 0:03:10.7]} 9... Bxd3 {[%clk
0:03:06.2]} 10. Qxd3 {[%clk 0:03:12.2]} 10... e6 {[%clk 0:03:08.1]} 11. Bd2
{[%clk 0:03:13.4]} 11... Ngf6 {[%clk 0:03:08.7]} 12. O-O-O {[%clk 0:03:13]}
12... Be7 {[%clk 0:03:09.7]} 13. Qe2 {[%clk 0:03:13.1]} 13... O-O {[%clk
0:03:09.4]} 14. Ne5 {[%clk 0:03:14.1]} 14... a5 {[%clk 0:02:52.2]} 15. Ne4
{[%clk 0:02:47.2]} 15... Nxe4 {[%clk 0:02:46.2]} 16. Qxe4 {[%clk 0:02:47.7]}
16... Nxe5 {[%clk 0:02:37.4]} 17. dxe5 {[%clk 0:02:46.3]} 17... Qd5 {[%clk
0:02:38.9]} 18. Qxd5 {[%clk 0:02:32.5]} 18... cxd5 {[%clk 0:02:40.8]} 19. a4
{[%clk 0:02:21.1]} 19... b5 {[%clk 0:02:29.9]} 20. axb5 {[%clk 0:02:17.4]} 20...
Rfb8 {[%clk 0:02:31.2]} 21. f4 {[%clk 0:01:56.9]} 21... Rxb5 {[%clk 0:02:31.5]}
22. g4 {[%clk 0:01:57.9]} 22... a4 {[%clk 0:02:28.5]} 23. Bc3 {[%clk 0:01:50.8]}
23... Rc8 {[%clk 0:02:25.4]} 24. Rd4 {[%clk 0:01:31.5]} 24... a3 {[%clk
0:02:22.3]} 25. Ra4 {[%clk 0:01:22.6]} 25... axb2+ {[%clk 0:02:17.1]} 26. Bxb2
{[%clk 0:01:21.6]} 26... Rbc5 {[%clk 0:02:18.1]} 27. Rh2 {[%clk 0:01:20.9]}
27... Rc4 {[%clk 0:02:18.8]} 28. Rxc4 {[%clk 0:01:16.1]} 28... Rxc4 {[%clk
0:02:18.6]} 29. Rf2 {[%clk 0:01:12.6]} 29... Rxf4 {[%clk 0:02:13.1]} 30. Rxf4
{[%clk 0:01:12.8]} 30... Bg5 {[%clk 0:02:14]} 31. Kd2 {[%clk 0:01:09.5]} 31...
Bxf4+ {[%clk 0:02:15.2]} 32. Kd3 {[%clk 0:01:10.6]} 32... Kf8 {[%clk 0:02:08.8]}
33. c4 {[%clk 0:01:12]} 33... Ke7 {[%clk 0:01:59.3]} 34. Kd4 {[%clk 0:00:41.9]}
34... dxc4 {[%clk 0:01:23.8]} 35. Kxc4 {[%clk 0:00:40.4]} 35... Kd7 {[%clk
0:01:24.7]} 36. Kd4 {[%clk 0:00:35.9]} 36... Kc6 {[%clk 0:01:24.8]} 37. Ke4
{[%clk 0:00:35.8]} 37... Bg5 {[%clk 0:01:25.6]} 38. Ba3 {[%clk 0:00:36.5]} 38...
Kb5 {[%clk 0:01:23.9]} 39. Bf8 {[%clk 0:00:28.8]} 39... g6 {[%clk 0:01:25.1]}
40. hxg6 {[%clk 0:00:22.2]} 40... fxg6 {[%clk 0:01:27]} 41. Kd4 {[%clk
0:00:21.5]} 41... Bc1 {[%clk 0:01:22.4]} 42. Bg7 {[%clk 0:00:21.5]} 42... Bd2
{[%clk 0:01:17.4]} 43. Ke4 {[%clk 0:00:21.6]} 43... Kc4 {[%clk 0:01:16.3]} 44.
Bf8 {[%clk 0:00:21.3]} 44... Bg5 {[%clk 0:01:16.3]} 45. Bg7 {[%clk 0:00:21.1]}
45... Kc3 {[%clk 0:01:16.7]} 46. Bf6 {[%clk 0:00:22.1]} 46... Bd2 {[%clk
0:01:03.2]} 47. Bd8 {[%clk 0:00:22.7]} 47... Kc2 {[%clk 0:01:02.6]} 48. Kd4
{[%clk 0:00:15.8]} 48... Bf4 {[%clk 0:01:00.4]} 49. Bf6 {[%clk 0:00:14]} 49...
Kd2 {[%clk 0:00:45.9]} 50. Ke4 {[%clk 0:00:09.6]} 50... Be3 {[%clk 0:00:41.9]}
51. Bh4 {[%clk 0:00:07.8]} 51... Ke2 {[%clk 0:00:42.8]} 52. Bg3 {[%clk
0:00:06.6]} 52... Bg5 {[%clk 0:00:43]} 53. Bh2 {[%clk 0:00:06.4]} 53... Kf2
{[%clk 0:00:43.1]} 54. Bf4 {[%clk 0:00:04.5]} 54... Bxf4 {[%clk 0:00:38.4]} 55.
Kxf4 {[%clk 0:00:05.8]} 55... g5+ {[%clk 0:00:40.3]} 56. Ke4 {[%clk 0:00:05.3]}
56... Kg3 {[%clk 0:00:42.1]} 57. Kd4 {[%clk 0:00:06.9]} 57... Kxg4 {[%clk
0:00:43.4]} 58. Kc5 {[%clk 0:00:08.8]} 58... Kf5 {[%clk 0:00:45.3]} 59. Kd6
{[%clk 0:00:10]} 59... g4 {[%clk 0:00:46.7]} 0-1

[Event "*** Qualifier 1: Titled Tuesday 3|2 Blitz"]
[Site "Chess.com"]
[Date "2017.04.04"]
[Round "1"]
[White "FelixBlohberger"]
[Black "A-Fier"]
[Result "1-0"]
[WhiteElo "2220"]
[BlackElo "2481"]
[TimeControl "180+2"]
[EndTime "13:10:17 PDT"]
[Termination "FelixBlohberger won by resignation"]

1. d4 {[%clk 0:03:00]} 1... Nf6 {[%clk 0:03:00.1]} 2. Nf3 {[%clk 0:03:00.9]}
2... g6 {[%clk 0:03:00.3]} 3. c4 {[%clk 0:02:59.4]} 3... Bg7 {[%clk 0:03:01]} 4.
Nc3 {[%clk 0:03:00.8]} 4... d5 {[%clk 0:03:00.8]} 5. cxd5 {[%clk 0:03:02.7]}
5... Nxd5 {[%clk 0:03:01.6]} 6. e4 {[%clk 0:03:03.9]} 6... Nxc3 {[%clk
0:03:02.8]} 7. bxc3 {[%clk 0:03:05.8]} 7... c5 {[%clk 0:03:04.7]} 8. Be3 {[%clk
0:03:06.6]} 8... Qa5 {[%clk 0:03:04.5]} 9. Qd2 {[%clk 0:03:07.4]} 9... O-O
{[%clk 0:03:05.5]} 10. Rb1 {[%clk 0:03:08.7]} 10... Rd8 {[%clk 0:02:13.4]} 11.
Rb5 {[%clk 0:02:17]} 11... Qa3 {[%clk 0:02:06.6]} 12. Rb3 {[%clk 0:02:02.4]}
12... Qa5 {[%clk 0:02:04.1]} 13. Rb5 {[%clk 0:02:02.6]} 13... Qc7 {[%clk
0:02:04.9]} 14. d5 {[%clk 0:02:01.4]} 14... b6 {[%clk 0:02:03.3]} 15. Bf4 {[%clk
0:01:51.6]} 15... Qd7 {[%clk 0:01:53.6]} 16. c4 {[%clk 0:01:46.9]} 16... Ba6
{[%clk 0:01:40.4]} 17. Rb3 {[%clk 0:01:45.8]} 17... Qa4 {[%clk 0:01:37.5]} 18.
Qc2 {[%clk 0:01:29.2]} 18... e6 {[%clk 0:01:34.5]} 19. Bd3 {[%clk 0:00:59.7]}
19... exd5 {[%clk 0:01:33.3]} 20. exd5 {[%clk 0:00:59.9]} 20... Re8+ {[%clk
0:01:33.4]} 21. Kf1 {[%clk 0:00:59.8]} 21... Nd7 {[%clk 0:01:31.9]} 22. g3
{[%clk 0:00:46.9]} 22... Nf6 {[%clk 0:01:18.4]} 23. Be5 {[%clk 0:00:07.4]} 23...
Rac8 {[%clk 0:00:43.3]} 24. Kg2 {[%clk 0:00:08]} 24... b5 {[%clk 0:00:30.2]} 25.
cxb5 {[%clk 0:00:07.1]} 25... Bb7 {[%clk 0:00:31.5]} 26. Bxf6 {[%clk 0:00:04.7]}
26... Bxf6 {[%clk 0:00:31.4]} 27. Bc4 {[%clk 0:00:06]} 27... Re4 {[%clk
0:00:29.7]} 28. Qxe4 {[%clk 0:00:06.2]} 28... Qxa2 {[%clk 0:00:24.4]} 29. Qf4
{[%clk 0:00:07]} 29... Kg7 {[%clk 0:00:24.6]} 30. g4 {[%clk 0:00:08.2]} 30...
Qc2 {[%clk 0:00:15.1]} 31. g5 {[%clk 0:00:08.1]} 31... Bd4 {[%clk 0:00:15.6]}
32. Nxd4 {[%clk 0:00:07.3]} 32... cxd4 {[%clk 0:00:17.5]} 33. Rf3 {[%clk
0:00:08.1]} 33... Rf8 {[%clk 0:00:07.9]} 34. Qf6+ {[%clk 0:00:08.7]} 34... Kg8
{[%clk 0:00:09.1]} 35. Bd3 {[%clk 0:00:09.5]} 35... Qc5 {[%clk 0:00:09.4]} 36.
Be4 {[%clk 0:00:10.5]} 36... d3 {[%clk 0:00:08.7]} 37. Rd1 {[%clk 0:00:10.5]}
37... Qc4 {[%clk 0:00:07.8]} 38. Qf4 {[%clk 0:00:09.4]} 38... Qxb5 {[%clk
0:00:04.6]} 39. Rdxd3 {[%clk 0:00:10.1]} 39... Qb4 {[%clk 0:00:04.6]} 40. Rde3
{[%clk 0:00:10.7]} 40... a5 {[%clk 0:00:04.2]} 41. d6 {[%clk 0:00:11.5]} 41...
Bc8 {[%clk 0:00:03.2]} 42. Bd5 {[%clk 0:00:09.6]} 42... Qb2 {[%clk 0:00:04.5]}
43. Bxf7+ {[%clk 0:00:04.8]} 43... Kg7 {[%clk 0:00:05.9]} 44. Qf6+ {[%clk
0:00:05.9]} 44... Qxf6 {[%clk 0:00:06]} 45. Rxf6 {[%clk 0:00:06.5]} 45... Rxf7
{[%clk 0:00:05.7]} 46. Re7 {[%clk 0:00:07.2]} 46... Rxe7 {[%clk 0:00:03.6]} 47.
dxe7 {[%clk 0:00:09.1]} 47... Bd7 {[%clk 0:00:05.5]} 48. Rf8 {[%clk 0:00:09.9]}
48... Bc6+ {[%clk 0:00:07.4]} 1-0